bitfinex-derivatives/quotes_BTCF0:USTF0_20241224
["timestamp","ask_amount","ask_price","bid_price","bid_amount"]
[1735071391416,0.0036,97536.0,97535.0,0.051291]
[1735071391615,0.07246681,97545.0,97535.0,0.3608]
[1735071391915,0.04640415,97545.0,97544.0,0.412087]
[1735071393309,0.051278,97561.0,97544.0,0.3608]
[1735071393605,0.051278,97561.0,97558.0,0.3608]
[1735071394406,0.12051498,97568.0,97558.0,0.3608]
[1735071394818,0.007,97561.0,97558.0,0.3628]
[1735071395207,0.007,97561.0,97558.0,0.002]
[1735071395413,0.007,97561.0,97559.0,0.051279]
[1735071395621,0.12051498,97573.0,97571.0,0.051272]
[1735071395917,0.12051498,97573.0,97572.0,0.3608]
[1735071396311,0.12051498,97580.0,97579.0,0.051268]
[1735071396510,0.12051498,97580.0,97579.0,0.412068]
[1735071397321,0.08749498,97580.0,97579.0,0.412068]
[1735071397521,0.00153793,97586.0,97584.0,0.051265]
[1735071397716,0.051267,97581.0,97579.0,0.3608]
[1735071398321,0.001,97580.0,97579.0,0.3608]
[1735071399114,0.001,97581.0,97579.0,0.3608]
[1735071399419,0.001,97581.0,97579.0,0.3618]
[1735071399810,0.001,97581.0,97579.0,0.413068]
[1735071400215,0.001,97581.0,97579.0,0.412068]
[1735071400414,0.001,97581.0,97579.0,0.413068]
[1735071400620,0.001,97580.0,97579.0,0.3618]
[1735071400824,0.001,97580.0,97579.0,0.412068]
[1735071401121,0.001,97580.0,97579.0,0.413068]
[1735071401524,0.00153793,97586.0,97585.0,0.051265]
[1735071401712,0.00153793,97586.0,97579.0,0.3618]
[1735071401713,0.00153793,97586.0,97579.0,0.36232]
[1735071401913,0.00153793,97586.0,97579.0,0.3618]
[1735071402307,0.002,97580.0,97579.0,0.413068]
[1735071403319,0.051253,97608.0,97595.0,0.051259]
[1735071403617,0.051254,97607.0,97599.0,0.3608]
[1735071403916,0.1263,97616.0,97599.0,0.3608]
[1735071404223,0.4608,97600.0,97580.0,0.15143657]
[1735071404422,0.051262,97592.0,97580.0,0.20270357]
[1735071404608,0.051262,97592.0,97581.0,0.051267]
[1735071404807,0.051262,97592.0,97579.0,0.36232]
[1735071404808,0.1263,97591.0,97582.0,0.051266]
[1735071405312,0.051258,97599.0,97585.0,0.051265]
[1735071405620,0.051258,97599.0,97580.0,0.15143657]
[1735071405621,0.051258,97599.0,97589.0,0.15143657]
[1735071406315,0.46144,97600.0,97589.0,0.51223657]
[1735071406617,0.1,97600.0,97595.0,0.051259]
[1735071407428,0.1,97600.0,97596.0,0.051259]
[1735071408017,0.1,97600.0,97589.0,0.51279657]
[1735071408211,0.1,97600.0,97599.0,0.051258]
[1735071410224,0.101,97600.0,97599.0,0.051258]
[1735071410422,0.1311,97622.0,97600.0,0.051257]
[1735071410621,0.15045382,97635.0,97600.0,0.051257]
[1735071410622,0.41418034,97628.0,97621.0,0.412046]
[1735071410928,0.41358033,97628.0,97621.0,0.3608]
[1735071411119,0.15045382,97635.0,97634.0,0.051239]
[1735071411321,0.05860269,97641.0,97640.0,0.051236]
[1735071411627,0.05860269,97641.0,97640.0,0.412036]
[1735071412011,0.1311,97665.0,97640.0,0.3608]
[1735071412215,0.2044413,97679.0,97661.0,0.3608]
[1735071412424,0.2044413,97679.0,97669.0,0.15143657]
[1735071412611,0.2044413,97679.0,97670.0,0.05122]
[1735071412816,0.2044413,97679.0,97661.0,0.412025]
[1735071413018,0.051221,97669.0,97660.0,0.15143657]
[1735071413219,0.2044413,97679.0,97661.0,0.3608]
[1735071413425,0.051217,97677.0,97664.0,0.051224]
[1735071413727,0.051218,97674.0,97669.0,0.001]
[1735071414031,0.3608,97673.0,97669.0,0.001]
[1735071414325,0.05122,97670.0,97669.0,0.001]
[1735071414717,0.3608,97673.0,97669.0,0.001]
[1735071415212,0.36293644,97682.0,97675.0,0.051217]
[1735071415423,0.36293644,97682.0,97681.0,0.051215]
[1735071415424,0.36233643,97682.0,97681.0,0.051215]
[1735071415613,0.00153643,97682.0,97681.0,0.051215]
[1735071417125,0.00153643,97682.0,97675.0,0.001]
[1735071417420,0.00153643,97682.0,97681.0,0.001]
[1735071418326,0.00153643,97682.0,97681.0,0.002]
[1735071419232,0.00153643,97682.0,97681.0,0.001]
[1735071420024,0.00153643,97682.0,97681.0,0.002]
[1735071425121,0.3608,97701.0,97681.0,0.002]
[1735071425434,0.3608,97701.0,97695.0,0.051207]
[1735071425735,0.05121,97690.0,97685.0,0.051212]
[1735071425921,0.3608,97691.0,97681.0,0.002]
[1735071426322,0.3608,97682.0,97653.0,0.3608]
[1735071426518,0.3608,97682.0,97650.0,0.15143657]
[1735071426519,0.051224,97665.0,97656.0,0.051228]
[1735071426722,0.051225,97662.0,97656.0,0.051228]
[1735071426926,0.051226,97660.0,97656.0,0.051228]
[1735071427439,0.4975,97664.0,97644.0,0.3442]
[1735071427440,0.051231,97651.0,97644.0,0.3442]
[1735071427629,0.3608,97654.0,97633.0,0.3608]
[1735071427934,0.051233,97647.0,97635.0,0.051238]
[1735071428325,0.051233,97647.0,97630.0,0.15143657]
[1735071428532,0.05124,97634.0,97624.0,0.412044]
[1735071428739,0.7216,97654.0,97624.0,0.412044]
[1735071428740,0.05124,97633.0,97626.0,0.051243]
[1735071429139,0.051241,97631.0,97626.0,0.051243]
[1735071429439,9.455e-05,97630.0,97624.0,0.3608]
[1735071429737,9.455e-05,97630.0,97628.0,0.051242]
[1735071430442,0.00109455,97630.0,97628.0,0.051242]
[1735071431141,0.3608,97661.0,97628.0,0.051242]
[1735071431340,0.372025,97661.0,97652.0,0.05123]
[1735071431539,0.051221,97669.0,97660.0,0.3608]
[1735071431843,0.00641703,97668.0,97660.0,0.3608]
[1735071432030,0.051223,97665.0,97659.0,0.051226]
[1735071432226,0.05764103,97664.0,97659.0,0.051226]
[1735071432427,0.00641703,97663.0,97659.0,0.051226]
[1735071433032,0.00641703,97663.0,97659.0,0.052226]
[1735071433227,0.00641703,97663.0,97659.0,0.001]
[1735071433432,0.00641703,97663.0,97660.0,0.051225]
[1735071433831,0.00741703,97663.0,97660.0,0.051225]
[1735071434935,0.001,97663.0,97659.0,0.001]
[1735071435134,0.001,97663.0,97661.0,0.051225]
[1735071435832,0.00742562,97663.0,97661.0,0.051225]
[1735071436141,0.00642608,97662.0,97661.0,0.051225]
[1735071436340,0.001,97663.0,97661.0,0.051225]
[1735071436341,0.001,97663.0,97661.0,0.052225]
[1735071437034,0.05764408,97675.0,97666.0,0.051222]
[1735071437242,0.00642608,97674.0,97669.0,0.3608]
[1735071437454,0.00642608,97673.0,97669.0,0.3608]
[1735071437630,0.00642608,97672.0,97671.0,0.05122]
[1735071437939,0.00153669,97680.0,97678.0,0.051216]
[1735071437940,0.00642608,97679.0,97678.0,0.051216]
[1735071438847,0.00153669,97680.0,97678.0,0.412016]
[1735071439543,0.00153669,97680.0,97678.0,0.413016]
[1735071439741,0.3608,97727.0,97690.0,0.0036]
[1735071439943,0.17992712,97717.0,97713.0,0.051197]
[1735071440141,0.00646822,97716.0,97713.0,0.051197]
[1735071440346,0.00646822,97715.0,97713.0,0.051197]
[1735071440646,0.00646822,97714.0,97713.0,0.051197]
[1735071441440,0.00646822,97714.0,97697.0,0.3442]
[1735071441643,0.3608,97709.0,97690.0,0.00153531]
[1735071441850,0.3608,97701.0,97690.0,0.00153531]
[1735071442144,0.051209,97692.0,97690.0,0.00153531]
[1735071442339,0.00646822,97691.0,97683.0,0.24498229]
[1735071442539,0.412013,97684.0,97683.0,0.24498229]
[1735071442840,0.05768122,97684.0,97670.0,0.39641886]
[1735071443040,0.00646822,97683.0,97670.0,0.39641886]
[1735071443239,0.00646822,97682.0,97675.0,0.051217]
[1735071443439,0.00646822,97681.0,97675.0,0.051217]
[1735071443639,0.00646822,97680.0,97675.0,0.051217]
[1735071443844,0.00646822,97679.0,97675.0,0.051217]
[1735071444043,0.00646822,97678.0,97677.0,0.051217]
[1735071444245,0.051205,97699.0,97686.0,0.051212]
[1735071444451,0.3608,97703.0,97695.0,0.3608]
[1735071444647,0.051201,97708.0,97695.0,0.3608]
[1735071444846,0.051201,97708.0,97698.0,0.051206]
[1735071444847,0.15074548,97704.0,97698.0,0.051206]
[1735071445146,0.15074548,97704.0,97703.0,0.412003]
[1735071445344,0.15074548,97704.0,97703.0,0.051203]
[1735071445944,0.001,97714.0,97695.0,0.412007]
[1735071446146,0.051203,97705.0,97695.0,0.413007]
[1735071446444,0.001,97703.0,97695.0,0.413007]
[1735071446644,0.001,97703.0,97698.0,0.051206]
[1735071447041,0.001,97703.0,97695.0,0.36232]
[1735071447244,0.3608,97707.0,97706.0,0.051202]
[1735071447439,0.15074548,97724.0,97704.0,0.3608]
[1735071447650,0.15074548,97724.0,97718.0,0.051195]
[1735071447947,0.15074548,97724.0,97710.0,0.15143657]
[1735071448149,0.15074548,97724.0,97715.0,0.3608]
[1735071448349,0.15074548,97724.0,97722.0,0.051193]
[1735071448544,0.15074548,97724.0,97723.0,0.3608]
[1735071448940,0.15074548,97724.0,97722.0,0.051193]
[1735071448941,0.00153601,97727.0,97726.0,0.051191]
[1735071449138,0.15074548,97733.0,97726.0,0.051191]
[1735071449139,0.15074548,97733.0,97732.0,0.051188]
[1735071449335,0.15074548,97733.0,97732.0,0.411988]
[1735071450150,0.15074548,97733.0,97732.0,0.051188]
[1735071450549,0.001,97733.0,97732.0,0.051188]
[1735071451147,0.051182,97744.0,97733.0,0.051187]
[1735071451450,0.051182,97743.0,97733.0,0.051187]
[1735071451648,0.3608,97750.0,97740.0,0.051184]
[1735071451853,0.3608,97750.0,97740.0,0.20262057]
[1735071452152,0.3608,97750.0,97745.0,0.051181]
[1735071452462,0.15074548,97766.0,97749.0,0.3608]
[1735071452642,0.15074548,97766.0,97764.0,0.051171]
[1735071452848,0.12689406,97766.0,97764.0,0.051171]
[1735071453045,0.17992712,97785.0,97764.0,0.351171]
[1735071453255,0.17992712,97785.0,97776.0,0.411965]
[1735071453753,0.17992712,97785.0,97776.0,0.3608]
[1735071453955,0.17992712,97785.0,97784.0,0.411961]
[1735071454254,0.3924076,97800.0,97784.0,0.6608]
[1735071454447,0.39180759,97800.0,97799.0,0.411953]
[1735071454757,0.051142,97820.0,97806.0,0.051149]
[1735071454947,0.051142,97820.0,97808.0,0.411948]
[1735071455149,0.3608,97822.0,97808.0,0.3608]
[1735071455449,0.3608,97822.0,97810.0,0.15143657]
[1735071455641,0.051145,97815.0,97800.0,0.15143657]
[1735071455847,0.051145,97815.0,97800.0,0.20258857]
[1735071456043,0.051145,97815.0,97808.0,0.001]
[1735071456246,0.3608,97822.0,97809.0,0.051148]
[1735071456558,0.3608,97822.0,97810.0,0.15143657]
[1735071456748,0.001,97815.0,97810.0,0.15143657]
[1735071456945,0.001,97815.0,97808.0,0.3618]
[1735071457145,0.3608,97881.0,97814.0,0.3608]
[1735071457346,0.3608,97881.0,97811.0,0.11087709]
[1735071457347,0.3608,97863.0,97848.0,0.3608]
[1735071457556,0.3608,97855.0,97850.0,0.15143657]
[1735071457749,0.3608,97855.0,97840.0,0.15143657]
[1735071458057,0.3608,97841.0,97820.0,0.15143657]
[1735071458243,0.3608,97833.0,97820.0,0.15143657]
[1735071458646,0.05114,97824.0,97820.0,0.15143657]
[1735071459254,0.1254,97840.0,97821.0,0.3608]
[1735071459454,0.1254,97840.0,97834.0,0.3608]
[1735071459651,0.1254,97840.0,97821.0,0.411941]
[1735071460746,0.051136,97832.0,97823.0,0.05114]
[1735071461044,0.1254,97840.0,97831.0,0.3608]
[1735071461647,0.1254,97840.0,97831.0,0.411936]
[1735071461849,0.051132,97839.0,97832.0,0.051135]
[1735071462044,0.051132,97839.0,97831.0,0.3608]
[1735071462253,0.1254,97840.0,97831.0,0.3608]
[1735071462655,0.1254,97840.0,97821.0,0.3608]
[1735071462843,0.1254,97840.0,97831.0,0.001]
[1735071463043,0.1254,97840.0,97821.0,0.3608]
[1735071463359,0.051132,97839.0,97821.0,0.3608]
[1735071463653,0.051139,97827.0,97821.0,0.3608]
[1735071463861,0.3608,97833.0,97821.0,0.3608]
[1735071464060,0.051138,97827.0,97821.0,0.3608]
[1735071465165,0.051141,97822.0,97821.0,0.3608]
[1735071465464,0.051141,97822.0,97821.0,0.3618]
[1735071465850,0.051141,97822.0,97821.0,0.3608]
[1735071466156,0.051141,97822.0,97821.0,0.3618]
[1735071467552,0.002,97822.0,97821.0,0.3618]
[1735071467856,0.002,97822.0,97821.0,0.3608]
[1735071468059,0.002,97822.0,97821.0,0.3618]
[1735071468264,0.002,97822.0,97821.0,0.412941]
[1735071468560,0.051124,97855.0,97838.0,0.051132]
[1735071468763,0.051124,97855.0,97846.0,0.3608]
[1735071469061,0.051121,97860.0,97846.0,0.3608]
[1735071469362,0.3608,97864.0,97850.0,0.15143657]
[1735071469562,0.2475,97884.0,97871.0,0.051115]
[1735071469858,0.051113,97875.0,97866.0,0.051118]
[1735071470061,0.2475,97884.0,97856.0,0.3608]
[1735071470062,0.3608,97879.0,97856.0,0.3608]
[1735071470362,0.051116,97870.0,97863.0,0.051119]
[1735071470671,0.051113,97876.0,97870.0,0.051115]
[1735071470961,0.051113,97876.0,97871.0,0.3608]
[1735071471163,0.3608,97880.0,97871.0,0.3608]
[1735071471355,0.298609,97884.0,97876.0,0.051112]
[1735071471554,0.298609,97884.0,97877.0,0.051112]
[1735071471754,0.298609,97884.0,97871.0,0.3608]
[1735071471755,0.051111,97879.0,97871.0,0.411915]
[1735071471956,0.2475,97884.0,97870.0,0.001]
[1735071472159,0.051115,97872.0,97870.0,0.001]
[1735071472765,0.051111,97879.0,97874.0,0.051114]
[1735071473064,0.051112,97878.0,97876.0,0.3608]
[1735071473257,0.00153403,97887.0,97883.0,0.051109]
[1735071473453,0.00153403,97887.0,97886.0,0.051107]
[1735071474757,0.1,97900.0,97884.0,0.3608]
[1735071474959,0.3608,97930.0,97899.0,0.3608]
[1735071475165,0.051098,97905.0,97900.0,0.15143657]
[1735071475557,0.3608,97922.0,97900.0,0.15143657]
[1735071475759,0.051099,97903.0,97900.0,0.15143657]
[1735071475961,0.0511,97901.0,97898.0,0.051101]
[1735071476267,0.051093,97914.0,97908.0,0.051096]
[1735071476757,0.051094,97912.0,97908.0,0.051096]
[1735071476960,0.051094,97912.0,97906.0,0.3608]
[1735071477461,0.00144561,97909.0,97907.0,0.051096]
[1735071477966,0.051091,97918.0,97906.0,0.3608]
[1735071477967,0.051091,97918.0,97909.0,0.04854472]
[1735071478163,0.3608,97925.0,97914.0,0.3608]
[1735071478367,0.1211,97935.0,97924.0,0.3608]
[1735071478560,0.1211,97935.0,97925.0,0.15143657]
[1735071478760,0.051075,97949.0,97935.0,0.051082]
[1735071478958,0.3608,97947.0,97930.0,0.15143657]
[1735071479264,0.3608,97956.0,97937.0,0.15143657]
[1735071479765,0.00110155,97947.0,97937.0,0.15143657]
[1735071479967,0.00110155,97947.0,97943.0,0.3608]
[1735071480156,0.00110155,97947.0,97943.0,0.411878]
[1735071480553,0.00110155,97947.0,97943.0,0.3608]
[1735071480757,0.051074,97950.0,97944.0,0.051077]
[1735071480758,0.00110155,97945.0,97944.0,0.051077]
[1735071480959,0.00110155,97945.0,97943.0,0.3608]
[1735071481155,0.05217855,97945.0,97937.0,0.001]
[1735071481360,0.05108,97938.0,97937.0,0.002]
[1735071481757,0.051083,97932.0,97931.0,0.3608]
[1735071482560,0.1186,97937.0,97910.0,0.15143657]
[1735071482561,0.051083,97933.0,97910.0,0.15143657]
[1735071482868,0.05109,97919.0,97912.0,0.051094]
[1735071483463,0.00110155,97922.0,97912.0,0.051094]
[1735071483668,0.051092,97917.0,97909.0,0.15143657]
[1735071483873,0.1186,97937.0,97909.0,0.15143657]
[1735071483874,0.051087,97925.0,97916.0,0.35969845]
[1735071484171,0.051087,97925.0,97921.0,0.051089]
[1735071484374,0.051087,97925.0,97924.0,0.3608]
[1735071485169,0.051087,97925.0,97924.0,0.411888]
[1735071485170,0.002,97925.0,97924.0,0.411888]
[1735071485374,0.3608,97978.0,97949.0,0.051074]
[1735071485574,0.051069,97960.0,97953.0,0.051072]
[1735071485769,0.051069,97960.0,97959.0,0.3608]
[1735071485977,0.051066,97967.0,97959.0,0.3608]
[1735071486369,0.051068,97962.0,97959.0,0.411869]
[1735071487168,0.2377,97971.0,97959.0,0.411869]
[1735071487873,0.00453254,97961.0,97959.0,0.412869]
[1735071488672,0.00453254,97961.0,97959.0,0.413869]
[1735071489769,0.05560054,97961.0,97959.0,0.3628]
[1735071489982,0.05560054,97961.0,97959.0,0.002]
[1735071490175,0.41640054,97961.0,97959.0,0.002]
[1735071490376,0.00453254,97961.0,97948.0,0.051075]
[1735071490677,0.00453254,97961.0,97935.0,0.3608]
[1735071490678,0.051077,97945.0,97939.0,0.05108]
[1735071490975,0.15143657,97950.0,97935.0,0.3608]
[1735071491277,0.051077,97945.0,97941.0,0.051078]
[1735071491481,0.051078,97942.0,97935.0,0.3608]
[1735071491675,0.051081,97937.0,97935.0,0.3608]
[1735071491877,0.051081,97937.0,97932.0,0.051083]
[1735071491878,0.051082,97934.0,97915.0,0.051092]
[1735071492073,0.3608,97929.0,97903.0,0.70404]
[1735071492276,0.3608,97929.0,97903.0,0.36144]
[1735071492480,0.051096,97908.0,97904.0,0.051098]
[1735071492679,0.3608,97929.0,97909.0,0.051095]
[1735071492878,0.3608,97929.0,97903.0,0.3608]
[1735071493180,0.051095,97911.0,97904.0,0.051098]
[1735071493879,0.051095,97911.0,97906.0,0.00353185]
[1735071494075,0.3608,97921.0,97906.0,0.00353185]
[1735071494275,0.051096,97908.0,97906.0,0.00453185]
[1735071494472,0.051096,97908.0,97906.0,0.00253185]
[1735071494778,0.051096,97908.0,97906.0,0.002]
[1735071495277,0.051098,97904.0,97903.0,0.3608]
[1735071496873,0.051104,97893.0,97887.0,0.051107]
[1735071497375,0.051104,97893.0,97891.0,0.051105]
[1735071497680,0.051104,97893.0,97884.0,0.051108]
[1735071497880,0.051104,97893.0,97885.0,0.051108]
[1735071498066,0.051104,97893.0,97892.0,0.3658]
[1735071498785,0.051104,97893.0,97892.0,0.005]
[1735071500079,0.054104,97893.0,97892.0,0.002]
[1735071500673,0.051104,97893.0,97886.0,0.051107]
[1735071500868,0.055104,97893.0,97892.0,0.001]
[1735071502074,0.057104,97893.0,97892.0,0.001]
[1735071503080,0.051105,97891.0,97886.0,0.051107]
[1735071503473,0.3608,97895.0,97886.0,0.051107]
[1735071503784,0.058104,97893.0,97892.0,0.001]
[1735071504079,0.051106,97889.0,97886.0,0.001]
[1735071504385,0.006,97891.0,97890.0,0.051105]
[1735071504582,0.05261891,97927.0,97914.0,0.051092]
[1735071504884,0.09416031,97916.0,97915.0,0.3608]
[1735071505079,0.05261891,97927.0,97915.0,0.3608]
[1735071505080,0.00153291,97927.0,97915.0,0.3608]
[1735071505284,0.00153291,97927.0,97923.0,0.411888]
[1735071506485,0.3608,97955.0,97932.0,0.051083]
[1735071506688,0.116,97949.0,97941.0,0.051079]
[1735071506878,0.116,97949.0,97942.0,0.051078]
[1735071507580,0.051074,97951.0,97940.0,0.3608]
[1735071508273,0.051074,97951.0,97946.0,0.051076]
[1735071508878,0.051075,97949.0,97939.0,0.15143657]
[1735071509185,0.3608,97955.0,97939.0,0.15143657]
[1735071509370,0.051078,97943.0,97939.0,0.15143657]
[1735071509570,0.051078,97943.0,97942.0,0.001]
[1735071510175,0.001,97951.0,97949.0,0.051074]
[1735071510374,0.001,97951.0,97939.0,0.15243657]
[1735071510375,0.001,97951.0,97942.0,0.051078]
[1735071510573,0.001,97943.0,97939.0,0.15243657]
[1735071510781,0.001,97943.0,97942.0,0.001]
[1735071510973,0.051082,97935.0,97930.0,0.15143657]
[1735071511382,0.3608,97937.0,97930.0,0.15143657]
[1735071511572,0.3608,97937.0,97923.0,0.18145097]
[1735071511776,0.051077,97945.0,97932.0,0.051083]
[1735071511984,0.051077,97945.0,97931.0,0.3608]
[1735071511985,0.051077,97945.0,97935.0,0.15143657]
[1735071512188,0.051077,97945.0,97938.0,0.05108]
[1735071512494,0.051077,97944.0,97938.0,0.05108]
[1735071513184,0.001,97943.0,97942.0,0.001]
[1735071513682,0.051079,97941.0,97938.0,0.05208]
[1735071514079,0.05108,97940.0,97938.0,0.001]
[1735071514280,0.051084,97931.0,97925.0,0.051087]
[1735071514478,0.051081,97938.0,97925.0,0.051087]
[1735071514679,0.051088,97923.0,97920.0,0.15143657]
[1735071514879,0.051089,97921.0,97911.0,0.051094]
[1735071515184,0.051089,97922.0,97910.0,0.15143657]
[1735071515487,0.1194,97930.0,97918.0,0.051091]
[1735071515787,0.1194,97930.0,97912.0,0.3608]
[1735071515788,0.051094,97921.0,97920.0,0.15143657]
[1735071515984,0.051094,97921.0,97912.0,0.3608]
[1735071515985,0.051096,97918.0,97912.0,0.3608]
[1735071516186,0.051096,97918.0,97912.0,0.411899]
[1735071516383,0.051096,97918.0,97903.0,0.01098648]
[1735071516384,0.3608,97915.0,97904.0,0.051103]
[1735071516583,0.3608,97915.0,97891.0,0.3608]
[1735071516888,0.051107,97898.0,97896.0,0.01120102]
[1735071517085,0.3608,97903.0,97887.0,0.051112]
[1735071517279,0.3608,97892.0,97887.0,0.051112]
[1735071517987,0.05111,97891.0,97881.0,0.34324]
[1735071518189,0.05111,97891.0,97883.0,0.051114]
[1735071518983,0.05111,97891.0,97867.0,0.051122]
[1735071519280,0.051121,97870.0,97867.0,0.051122]
[1735071519683,0.051124,97865.0,97859.0,0.051126]
[1735071520688,0.051124,97865.0,97860.0,0.051126]
[1735071520887,0.411924,97865.0,97860.0,0.051126]
[1735071521582,0.411924,97865.0,97861.0,0.06194387]
[1735071521784,0.411924,97865.0,97854.0,0.051129]
[1735071522094,0.412924,97865.0,97852.0,0.3608]
[1735071522289,0.412924,97865.0,97863.0,0.051124]
[1735071522594,0.411924,97865.0,97863.0,0.051124]
[1735071522792,0.413924,97865.0,97864.0,0.00111839]
[1735071523780,0.413924,97865.0,97864.0,0.00011839]
[1735071523984,0.3628,97865.0,97864.0,0.00011839]
[1735071524791,0.413924,97865.0,97864.0,0.00011839]
[1735071526391,0.413924,97865.0,97864.0,0.00111839]
[1735071526593,0.413924,97865.0,97848.0,0.051132]
[1735071526594,0.051131,97851.0,97848.0,0.051132]
[1735071527095,0.3608,97850.0,97841.0,0.051136]
[1735071527698,0.051136,97842.0,97840.0,0.35416412]
[1735071527886,0.051136,97842.0,97840.0,0.01088412]
[1735071528087,0.051136,97842.0,97832.0,0.051141]
[1735071528596,0.051136,97842.0,97835.0,0.051139]
[1735071528892,0.051136,97842.0,97837.0,0.051138]
[1735071529092,0.051136,97842.0,97838.0,0.051137]
[1735071529399,0.051136,97841.0,97833.0,0.05114]
[1735071530098,0.3628,97842.0,97833.0,0.05114]
[1735071530099,0.36332001,97842.0,97833.0,0.05114]
[1735071530303,0.051139,97836.0,97831.0,0.01229386]
[1735071530501,0.051141,97832.0,97831.0,0.00153298]
[1735071531591,0.051141,97832.0,97831.0,0.001]
[1735071532990,0.051141,97832.0,97824.0,0.01107221]
[1735071532991,0.051143,97829.0,97824.0,0.01107221]
[1735071533195,0.051143,97829.0,97820.0,0.20258357]
[1735071533403,0.051143,97827.0,97820.0,0.20258357]
[1735071533597,0.051143,97827.0,97820.0,0.21357575]
[1735071534303,0.051143,97827.0,97824.0,0.003]
[1735071534503,0.051143,97827.0,97825.0,0.051144]
[1735071535613,0.09046917,97857.0,97830.0,0.051142]
[1735071535810,0.09046917,97857.0,97856.0,0.051128]
[1735071536011,0.09046917,97857.0,97847.0,0.051132]
[1735071536919,0.05113,97854.0,97847.0,0.051132]
[1735071537302,0.002,97857.0,97847.0,0.051132]
[1735071537512,0.002,97857.0,97839.0,0.3608]
[1735071537513,0.051134,97845.0,97839.0,0.051137]
[1735071537813,0.051134,97845.0,97839.0,0.01075425]
[1735071538011,0.051134,97845.0,97842.0,0.051135]
[1735071538413,0.051134,97845.0,97836.0,0.3608]
[1735071538719,0.051132,97850.0,97844.0,0.3608]
[1735071539020,0.003,97857.0,97840.0,0.30287314]
[1735071539205,0.3608,97895.0,97849.0,0.3608]
[1735071539406,0.1242,97901.0,97873.0,0.3608]
[1735071539612,0.051108,97896.0,97885.0,0.051113]
[1735071539805,0.1242,97901.0,97885.0,0.051113]
[1735071539806,0.14973218,97892.0,97885.0,0.051113]
[1735071540810,0.0025334,97887.0,97885.0,0.052113]
[1735071542218,0.0025334,97887.0,97885.0,0.053113]
[1735071543112,0.15143657,97930.0,97885.0,0.053113]
[1735071543113,0.051095,97920.0,97914.0,0.051098]
[1735071543315,0.00052001,97922.0,97920.0,0.051095]
[1735071543516,0.14973218,97923.0,97920.0,0.051095]
[1735071543708,0.3608,97921.0,97911.0,0.3608]
[1735071543912,0.3608,97921.0,97914.0,0.051098]
[1735071544110,0.14973218,97923.0,97911.0,0.3608]
[1735071544422,0.14973218,97923.0,97917.0,0.051096]
[1735071544618,0.14973218,97923.0,97911.0,0.3608]
[1735071544619,0.14973218,97923.0,97918.0,0.051095]
[1735071545129,0.051093,97925.0,97919.0,0.051095]
[1735071545627,0.3608,97929.0,97903.0,0.3608]
[1735071545628,0.051099,97912.0,97903.0,0.3608]
[1735071545818,0.051095,97920.0,97901.0,0.051105]
[1735071546019,0.3608,97915.0,97901.0,0.051105]
[1735071546219,0.051102,97907.0,97901.0,0.051105]
[1735071546420,0.051102,97906.0,97901.0,0.051105]
[1735071546730,0.3608,97902.0,97893.0,0.051109]
[1735071547130,0.3608,97915.0,97901.0,0.001]
[1735071547319,0.3608,97929.0,97912.0,0.3608]
[1735071547627,0.3608,97929.0,97925.0,0.051092]
[1735071547828,0.3608,97929.0,97919.0,0.15143657]
[1735071548031,0.14973218,97932.0,97931.0,0.051089]
[1735071548220,0.14973218,97932.0,97931.0,0.411889]
[1735071549333,0.14973218,97932.0,97931.0,0.412889]
[1735071549535,0.051086,97938.0,97931.0,0.001]
[1735071549728,0.7216,97932.0,97931.0,0.001]
[1735071550525,0.3608,97941.0,97931.0,0.001]
[1735071550725,0.3608,97941.0,97939.0,0.051085]
[1735071550932,0.3608,97946.0,97939.0,0.051085]
[1735071551231,0.3608,97946.0,97941.0,0.051084]
[1735071551433,0.3608,97946.0,97942.0,0.051083]
[1735071551631,0.3608,97946.0,97931.0,0.51323657]
[1735071551632,0.1229,97951.0,97945.0,0.051082]
[1735071551833,0.1229,97951.0,97950.0,0.051079]
[1735071552533,0.4837,97951.0,97950.0,0.051079]
[1735071552734,0.4837,97951.0,97942.0,0.051083]
[1735071552936,0.4837,97951.0,97945.0,0.001]
[1735071553137,0.1229,97951.0,97945.0,0.001]
[1735071553323,0.1229,97951.0,97950.0,0.051079]
[1735071554235,0.1229,97951.0,97950.0,0.052079]
[1735071554834,0.3608,97966.0,97950.0,0.052079]
[1735071554835,0.00052001,97973.0,97972.0,0.051068]
[1735071555039,0.051063,97981.0,97975.0,0.051066]
[1735071555230,0.051063,97981.0,97977.0,0.051065]
[1735071555545,0.051061,97985.0,97978.0,0.051064]
[1735071555840,0.3608,97986.0,97978.0,0.051064]
[1735071556140,0.051061,97985.0,97980.0,0.051063]
[1735071556332,0.3608,97986.0,97983.0,0.051062]
[1735071557021,0.411861,97986.0,97983.0,0.051062]
[1735071558220,0.3608,97986.0,97980.0,0.001]
[1735071558431,0.3608,97997.0,97983.0,0.001]
[1735071558630,0.3608,97997.0,97995.0,0.051055]
[1735071558932,0.3608,98007.0,97999.0,0.051054]
[1735071559939,0.3608,98007.0,97999.0,0.001]
[1735071560134,0.151053,98000.0,97999.0,0.001]
[1735071560330,0.151053,98000.0,97976.0,0.01087047]
[1735071560331,0.051058,97991.0,97980.0,0.20349957]
[1735071560531,0.1,98000.0,97980.0,0.20349957]
[1735071560532,0.051054,97999.0,97981.0,0.3608]
[1735071560738,0.051054,97999.0,97990.0,0.20249457]
[1735071561034,0.1,98000.0,97999.0,0.001]
[1735071561730,0.4608,98000.0,97990.0,0.15143657]
[1735071561924,0.3608,97991.0,97990.0,0.001]
[1735071562135,0.051058,97992.0,97990.0,0.001]